[Event "Titled Tuesday Blitz March 08 Late 2022"]
[White "Muradli, Mahammad"]
[Black "Vargas, Gabriela"]
[WhiteFideId "13409301"]
[BlackFideId "3700860"]
[WhiteElo "2611"]
[BlackElo "2071"]
[Result "1-0"]
[Round "02"]
[TimeControl "180+1"]
[Date "2022.03.09"]
[WhiteClock "0:00:28"]
[BlackClock "0:01:18"]

1. g3 {[%clk 0:02:58]}  d5 {[%clk 0:02:59]} 2. Nf3 {[%clk 0:02:58]}  c6 {[%clk 0:02:59]} 3. Bg2 {[%clk 0:02:58]}  Bg4 {[%clk 0:02:58]} 4. O-O {[%clk 0:02:54]}  Nd7 {[%clk 0:02:58]} 5. c4 {[%clk 0:02:53]}  e6 {[%clk 0:02:58]} 6. d4 {[%clk 0:02:52]}  Ngf6 {[%clk 0:02:58]} 7. Nc3 {[%clk 0:02:52]}  h6 {[%clk 0:02:58]} 8. Re1 {[%clk 0:02:50]}  Bb4 {[%clk 0:02:55]} 9. Bd2 {[%clk 0:02:49]}  O-O {[%clk 0:02:55]} 10. a3 {[%clk 0:02:49]}  Bxc3 {[%clk 0:02:55]} 11. Bxc3 {[%clk 0:02:50]}  Ne4 {[%clk 0:02:56]} 12. Bb4 {[%clk 0:02:50]}  Re8 {[%clk 0:02:55]} 13. a4 {[%clk 0:02:46]}  a5 {[%clk 0:02:55]} 14. Ba3 {[%clk 0:02:46]}  Nb6 {[%clk 0:02:49]} 15. Ne5 {[%clk 0:02:46]}  Bf5 {[%clk 0:02:48]} 16. f3 {[%clk 0:02:29]}  Nf6 {[%clk 0:02:47]} 17. e4 {[%clk 0:02:29]}  Bh7 {[%clk 0:02:46]} 18. b3 {[%clk 0:02:18]}  Nfd7 {[%clk 0:02:36]} 19. c5 {[%clk 0:02:17]}  Nc8 {[%clk 0:02:32]} 20. exd5 {[%clk 0:02:15]}  exd5 {[%clk 0:02:32]} 21. Nxd7 {[%clk 0:02:14]}  Qxd7 {[%clk 0:02:33]} 22. Rxe8+ {[%clk 0:02:13]}  Qxe8 {[%clk 0:02:33]} 23. Qd2 {[%clk 0:02:14]}  Ne7 {[%clk 0:02:31]} 24. Re1 {[%clk 0:02:14]}  Qd7 {[%clk 0:02:32]} 25. Bb2 {[%clk 0:02:15]}  Re8 {[%clk 0:02:31]} 26. Qxa5 {[%clk 0:02:14]}  Nf5 {[%clk 0:02:30]} 27. Qd2 {[%clk 0:02:13]}  Rxe1+ {[%clk 0:02:24]} 28. Qxe1 {[%clk 0:02:14]}  Qe7 {[%clk 0:02:24]} 29. Qxe7 {[%clk 0:02:14]}  Nxe7 {[%clk 0:02:25]} 30. Kf2 {[%clk 0:02:15]}  Bc2 {[%clk 0:02:25]} 31. a5 {[%clk 0:02:09]}  Bxb3 {[%clk 0:02:25]} 32. Bf1 {[%clk 0:02:09]}  Bc4 {[%clk 0:02:25]} 33. Bh3 {[%clk 0:02:07]}  Kf8 {[%clk 0:02:15]} 34. Bc1 {[%clk 0:02:06]}  Ke8 {[%clk 0:02:15]} 35. Bf4 {[%clk 0:02:06]}  Kd8 {[%clk 0:02:12]} 36. Bd6 {[%clk 0:02:04]}  g6 {[%clk 0:02:08]} 37. Be5 {[%clk 0:01:43]}  Nf5 {[%clk 0:01:57]} 38. Bf6+ {[%clk 0:01:36]}  Ke8 {[%clk 0:01:51]} 39. g4 {[%clk 0:01:33]}  Ne7 {[%clk 0:01:50]} 40. Bg7 {[%clk 0:01:20]}  h5 {[%clk 0:01:46]} 41. gxh5 {[%clk 0:01:21]}  gxh5 {[%clk 0:01:47]} 42. Kg3 {[%clk 0:01:16]}  Bd3 {[%clk 0:01:44]} 43. Bf6 {[%clk 0:01:09]}  Ng6 {[%clk 0:01:43]} 44. Bc8 {[%clk 0:01:07]}  Ba6 {[%clk 0:01:43]} 45. h3 {[%clk 0:01:02]}  Kf8 {[%clk 0:01:42]} 46. Bd7 {[%clk 0:01:02]}  Kg8 {[%clk 0:01:39]} 47. f4 {[%clk 0:00:57]}  Kf8 {[%clk 0:01:36]} 48. f5 {[%clk 0:00:56]}  Ne7 {[%clk 0:01:33]} 49. Kf4 {[%clk 0:00:56]}  Bf1 {[%clk 0:01:32]} 50. h4 {[%clk 0:00:55]}  Bd3 {[%clk 0:01:30]} 51. Ke5 {[%clk 0:00:50]}  Ng8 {[%clk 0:01:30]} 52. Bd8 {[%clk 0:00:44]}  Nh6 {[%clk 0:01:26]} 53. Bc8 {[%clk 0:00:37]}  Ng4+ {[%clk 0:01:24]} 54. Kd6 {[%clk 0:00:35]}  Ba6 {[%clk 0:01:25]} 55. Kc7 {[%clk 0:00:32]}  Ne3 {[%clk 0:01:24]} 56. Bxb7 {[%clk 0:00:30]}  Bxb7 {[%clk 0:01:24]} 57. Kxb7 {[%clk 0:00:31]}  Nxf5 {[%clk 0:01:24]} 58. a6 {[%clk 0:00:31]}  Nxd4 {[%clk 0:01:24]} 59. a7 {[%clk 0:00:31]}  Nb3 {[%clk 0:01:24]} 60. Bb6 {[%clk 0:00:31]}  d4 {[%clk 0:01:23]} 61. a8=Q+ {[%clk 0:00:31]}  Kg7 {[%clk 0:01:24]} 62. Qd8 {[%clk 0:00:32]}  f5 {[%clk 0:01:21]} 63. Qg5+ {[%clk 0:00:32]}  Kh7 {[%clk 0:01:20]} 64. Qxf5+ {[%clk 0:00:33]}  Kh6 {[%clk 0:01:20]} 65. Qg5+ {[%clk 0:00:33]}  Kh7 {[%clk 0:01:20]} 66. Qxh5+ {[%clk 0:00:34]}  Kg7 {[%clk 0:01:21]} 67. Qg5+ {[%clk 0:00:35]}  Kh7 {[%clk 0:01:21]} 68. Kxc6 {[%clk 0:00:36]}  d3 {[%clk 0:01:20]} 69. Kd5 {[%clk 0:00:36]}  d2 {[%clk 0:01:20]} 70. Qh5+ {[%clk 0:00:36]}  Kg7 {[%clk 0:01:20]} 71. Ke6 {[%clk 0:00:36]}  Nd4+ {[%clk 0:01:19]} 72. Ke7 {[%clk 0:00:30]}  Nc6+ {[%clk 0:01:19]} 73. Kd6 {[%clk 0:00:28]}  Nd4 {[%clk 0:01:18]} 74. Qe5+ {[%clk 0:00:27]}  Kh7 {[%clk 0:01:18]} 75. Qxd4 {[%clk 0:00:28]} 1-0


[Site "https://www.chess.com"]

[Event "Titled Tuesday Blitz March 08 Late 2022"]
[White "Nakamura, Hikaru"]
[Black "Rastbod, Ali"]
[WhiteFideId "2016192"]
[BlackFideId "12567477"]
[WhiteElo "2850"]
[BlackElo "2200"]
[Result "1-0"]
[Round "02"]
[TimeControl "180+1"]
[Date "2022.03.08"]
[WhiteClock "0:01:08"]
[BlackClock "0:00:03"]

1. Nf3 {[%clk 0:03:00]}  d5 {[%clk 0:02:59]} 2. b3 {[%clk 0:03:00]}  Nf6 {[%clk 0:02:55]} 3. Bb2 {[%clk 0:03:01]}  e6 {[%clk 0:02:55]} 4. e3 {[%clk 0:02:59]}  Be7 {[%clk 0:02:55]} 5. g3 {[%clk 0:02:58]}  O-O {[%clk 0:02:55]} 6. Bg2 {[%clk 0:02:59]}  c5 {[%clk 0:02:55]} 7. d4 {[%clk 0:02:59]}  Nc6 {[%clk 0:02:54]} 8. O-O {[%clk 0:02:59]}  cxd4 {[%clk 0:02:52]} 9. exd4 {[%clk 0:02:57]}  b6 {[%clk 0:02:48]} 10. Nbd2 {[%clk 0:02:55]}  Bb7 {[%clk 0:02:48]} 11. Re1 {[%clk 0:02:55]}  Rc8 {[%clk 0:02:47]} 12. a3 {[%clk 0:02:53]}  b5 {[%clk 0:02:05]} 13. Bf1 {[%clk 0:02:48]}  a6 {[%clk 0:02:04]} 14. Bd3 {[%clk 0:02:47]}  h6 {[%clk 0:02:03]} 15. b4 {[%clk 0:02:44]}  Nd7 {[%clk 0:02:01]} 16. Nb3 {[%clk 0:02:43]}  Nb6 {[%clk 0:02:01]} 17. Nc5 {[%clk 0:02:43]}  Qc7 {[%clk 0:01:59]} 18. c3 {[%clk 0:02:43]}  Nc4 {[%clk 0:01:58]} 19. Bc1 {[%clk 0:02:43]}  Bd6 {[%clk 0:01:56]} 20. a4 {[%clk 0:02:44]}  e5 {[%clk 0:01:51]} 21. axb5 {[%clk 0:02:43]}  axb5 {[%clk 0:01:52]} 22. Bxc4 {[%clk 0:02:36]}  dxc4 {[%clk 0:01:46]} 23. Nxb7 {[%clk 0:02:35]}  Qxb7 {[%clk 0:01:46]} 24. dxe5 {[%clk 0:02:35]}  Be7 {[%clk 0:01:33]} 25. Qe2 {[%clk 0:02:32]}  Rcd8 {[%clk 0:01:31]} 26. Qe4 {[%clk 0:02:30]}  Rd3 {[%clk 0:01:25]} 27. Nd4 {[%clk 0:02:29]}  Rc8 {[%clk 0:01:19]} 28. e6 {[%clk 0:02:28]}  Bf6 {[%clk 0:01:11]} 29. exf7+ {[%clk 0:02:26]}  Kxf7 {[%clk 0:01:12]} 30. Qe6+ {[%clk 0:02:18]}  Kf8 {[%clk 0:01:01]} 31. Bf4 {[%clk 0:02:17]}  Be7 {[%clk 0:00:39]} 32. Nf5 {[%clk 0:01:46]}  Qd7 {[%clk 0:00:29]} 33. Nxe7 {[%clk 0:01:25]}  Nxe7 {[%clk 0:00:20]} 34. Qxd7 {[%clk 0:01:25]}  Rxd7 {[%clk 0:00:21]} 35. Be5 {[%clk 0:01:19]}  Nc6 {[%clk 0:00:19]} 36. Bf4 {[%clk 0:01:19]}  Rd3 {[%clk 0:00:18]} 37. Rac1 {[%clk 0:01:19]}  Re8 {[%clk 0:00:18]} 38. Red1 {[%clk 0:01:17]}  Red8 {[%clk 0:00:15]} 39. Rxd3 {[%clk 0:01:17]}  Rxd3 {[%clk 0:00:16]} 40. Kf1 {[%clk 0:01:18]}  Ne7 {[%clk 0:00:16]} 41. Ke2 {[%clk 0:01:18]}  Nd5 {[%clk 0:00:16]} 42. Be5 {[%clk 0:01:16]}  g5 {[%clk 0:00:16]} 43. h3 {[%clk 0:01:11]}  h5 {[%clk 0:00:16]} 44. Ke1 {[%clk 0:01:09]}  Kf7 {[%clk 0:00:12]} 45. Rd1 {[%clk 0:01:08]}  Rxd1+ {[%clk 0:00:06]} 46. Kxd1 {[%clk 0:01:09]}  Ke6 {[%clk 0:00:06]} 47. Bd4 {[%clk 0:01:09]}  g4 {[%clk 0:00:06]} 48. hxg4 {[%clk 0:01:09]}  hxg4 {[%clk 0:00:07]} 49. Ke2 {[%clk 0:01:10]}  Kf5 {[%clk 0:00:07]} 50. f3 {[%clk 0:01:10]}  Nc7 {[%clk 0:00:07]} 51. Kf2 {[%clk 0:01:09]}  Ne6 {[%clk 0:00:07]} 52. Bh8 {[%clk 0:01:08]}  Ng5 {[%clk 0:00:07]} 53. fxg4+ {[%clk 0:01:08]}  Kxg4 {[%clk 0:00:04]} 54. Ke3 {[%clk 0:01:07]}  Kxg3 {[%clk 0:00:04]} 55. Kd4 {[%clk 0:01:08]}  Kf4 {[%clk 0:00:03]} 56. Kc5 {[%clk 0:01:08]}  Ke4 {[%clk 0:00:03]} 57. Kxb5 {[%clk 0:01:09]}  Kd5 {[%clk 0:00:04]} 58. Ka6 {[%clk 0:01:09]}  Ne6 {[%clk 0:00:04]} 59. b5 {[%clk 0:01:09]}  Nc5+ {[%clk 0:00:04]} 60. Ka7 {[%clk 0:01:09]}  Nd7 {[%clk 0:00:02]} 61. b6 {[%clk 0:01:07]}  Kc6 {[%clk 0:00:03]} 62. b7 {[%clk 0:01:07]}  Kc7 {[%clk 0:00:03]} 63. Bd4 {[%clk 0:01:08]}  Kc6 {[%clk 0:00:02]} 64. b8=Q {[%clk 0:01:08]}  Nxb8 {[%clk 0:00:02]} 65. Kxb8 {[%clk 0:01:09]}  Kd7 {[%clk 0:00:03]} 66. Kb7 {[%clk 0:01:08]} 1-0


[Site "https://www.chess.com"]

[Event "Titled Tuesday Blitz March 08 Late 2022"]
[White "Nikologorsky, Matfei"]
[Black "Morris-Suzuki, Sophie"]
[WhiteFideId "24102474"]
[BlackFideId "30922615"]
[WhiteElo "2231"]
[BlackElo "2503"]
[Result "1-0"]
[Round "02"]
[TimeControl "180+1"]
[Date "2022.03.09"]
[WhiteClock "0:00:49"]
[BlackClock "0:00:04"]

1. e4 {[%clk 0:03:00]}  c5 {[%clk 0:02:59]} 2. Nf3 {[%clk 0:03:00]}  e6 {[%clk 0:02:59]} 3. d4 {[%clk 0:02:59]}  cxd4 {[%clk 0:03:00]} 4. Nxd4 {[%clk 0:03:00]}  d6 {[%clk 0:03:00]} 5. Nc3 {[%clk 0:03:00]}  a6 {[%clk 0:03:00]} 6. g4 {[%clk 0:02:58]}  b5 {[%clk 0:03:00]} 7. Bg2 {[%clk 0:02:57]}  Bb7 {[%clk 0:03:01]} 8. Be3 {[%clk 0:02:52]}  b4 {[%clk 0:02:52]} 9. Nce2 {[%clk 0:02:41]}  Nf6 {[%clk 0:02:53]} 10. Ng3 {[%clk 0:02:40]}  Qc7 {[%clk 0:02:34]} 11. g5 {[%clk 0:02:29]}  Nfd7 {[%clk 0:02:34]} 12. Qd2 {[%clk 0:02:29]}  Nc6 {[%clk 0:01:27]} 13. f4 {[%clk 0:02:27]}  Nxd4 {[%clk 0:01:09]} 14. Bxd4 {[%clk 0:02:28]}  a5 {[%clk 0:01:09]} 15. O-O {[%clk 0:02:23]}  e5 {[%clk 0:00:55]} 16. Be3 {[%clk 0:02:07]}  exf4 {[%clk 0:00:55]} 17. Bxf4 {[%clk 0:02:07]}  Ne5 {[%clk 0:00:55]} 18. Kh1 {[%clk 0:01:58]}  Be7 {[%clk 0:00:51]} 19. Nf5 {[%clk 0:01:56]}  O-O {[%clk 0:00:51]} 20. Rad1 {[%clk 0:01:53]}  Rad8 {[%clk 0:00:50]} 21. Qf2 {[%clk 0:01:28]}  Nc4 {[%clk 0:00:35]} 22. Qd4 {[%clk 0:01:25]}  Ne5 {[%clk 0:00:33]} 23. Rd3 {[%clk 0:01:19]}  Rfe8 {[%clk 0:00:32]} 24. Rh3 {[%clk 0:01:17]}  Bf8 {[%clk 0:00:29]} 25. c3 {[%clk 0:01:18]}  bxc3 {[%clk 0:00:19]} 26. Rxc3 {[%clk 0:01:17]}  Qb8 {[%clk 0:00:19]} 27. Rg3 {[%clk 0:01:11]}  Ng6 {[%clk 0:00:18]} 28. Bd2 {[%clk 0:01:06]}  d5 {[%clk 0:00:15]} 29. Bc3 {[%clk 0:01:03]}  dxe4 {[%clk 0:00:12]} 30. Qf2 {[%clk 0:00:54]}  Rd3 {[%clk 0:00:09]} 31. Nh6+ {[%clk 0:00:53]}  Kh8 {[%clk 0:00:06]} 32. Nxf7+ {[%clk 0:00:54]}  Kg8 {[%clk 0:00:07]} 33. Nh6+ {[%clk 0:00:51]}  Kh8 {[%clk 0:00:07]} 34. Qf7 {[%clk 0:00:51]}  Ne7 {[%clk 0:00:04]} 35. Qg8+ {[%clk 0:00:49]}  Nxg8 {[%clk 0:00:04]} 36. Nf7# {[%clk 0:00:49]} 1-0


[Site "https://www.chess.com"]

[Event "Titled Tuesday Blitz March 08 Late 2022"]
[White "Petrova, Irina"]
[Black "Golubev, Mikhail"]
[WhiteFideId "14124122"]
[BlackFideId "14100983"]
[WhiteElo "1993"]
[BlackElo "2374"]
[Result "1/2-1/2"]
[Round "02"]
[TimeControl "180+1"]
[Date "2022.03.09"]
[WhiteClock "0:00:07"]
[BlackClock "0:00:10"]

1. e4 {[%clk 0:03:00]}  c5 {[%clk 0:02:59]} 2. Nf3 {[%clk 0:03:00]}  d6 {[%clk 0:02:59]} 3. Bb5+ {[%clk 0:03:00]}  Nc6 {[%clk 0:02:55]} 4. Bxc6+ {[%clk 0:02:58]}  bxc6 {[%clk 0:02:55]} 5. O-O {[%clk 0:02:59]}  e5 {[%clk 0:02:50]} 6. c3 {[%clk 0:02:58]}  Bg4 {[%clk 0:02:48]} 7. h3 {[%clk 0:02:56]}  Bh5 {[%clk 0:02:44]} 8. d4 {[%clk 0:02:54]}  cxd4 {[%clk 0:02:36]} 9. cxd4 {[%clk 0:02:55]}  Bxf3 {[%clk 0:02:36]} 10. Qxf3 {[%clk 0:02:33]}  exd4 {[%clk 0:02:33]} 11. e5 {[%clk 0:02:27]}  d5 {[%clk 0:02:31]} 12. Qg3 {[%clk 0:02:04]}  Ne7 {[%clk 0:02:23]} 13. Qg4 {[%clk 0:01:44]}  Qd7 {[%clk 0:02:19]} 14. Qxd4 {[%clk 0:01:42]}  Nf5 {[%clk 0:02:15]} 15. Qf4 {[%clk 0:01:37]}  h5 {[%clk 0:02:07]} 16. Nd2 {[%clk 0:01:31]}  g5 {[%clk 0:01:23]} 17. Qxg5 {[%clk 0:01:11]}  Bh6 {[%clk 0:01:14]} 18. Qf6 {[%clk 0:01:07]}  Bg7 {[%clk 0:01:09]} 19. Qg5 {[%clk 0:01:05]}  Bh6 {[%clk 0:00:20]} 20. Qf6 {[%clk 0:01:04]}  Rg8 {[%clk 0:00:20]} 21. Nf3 {[%clk 0:00:37]}  Bg7 {[%clk 0:00:19]} 22. Qg5 {[%clk 0:00:20]}  Kf8 {[%clk 0:00:19]} 23. Qd2 {[%clk 0:00:12]}  Bh6 {[%clk 0:00:18]} 24. Qb4+ {[%clk 0:00:12]}  Ke8 {[%clk 0:00:16]} 25. Bxh6 {[%clk 0:00:12]}  Nxh6 {[%clk 0:00:17]} 26. Rfe1 {[%clk 0:00:11]}  Qxh3 {[%clk 0:00:16]} 27. Nh4 {[%clk 0:00:09]}  Rg4 {[%clk 0:00:13]} 28. Qd6 {[%clk 0:00:08]}  Qxh4 {[%clk 0:00:12]} 29. Qxc6+ {[%clk 0:00:08]}  Ke7 {[%clk 0:00:11]} 30. Qd6+ {[%clk 0:00:07]}  Ke8 {[%clk 0:00:10]} 31. Qc6+ {[%clk 0:00:07]}  Ke7 {[%clk 0:00:09]} 32. Qd6+ {[%clk 0:00:07]}  Ke8 {[%clk 0:00:10]} 33. Qc6+ {[%clk 0:00:07]} 1/2-1/2


[Site "https://www.chess.com"]

[Event "Titled Tuesday Blitz March 08 Late 2022"]
[White "Piesik, Piotr"]
[Black "Svane, Rasmus"]
[WhiteFideId "1136194"]
[BlackFideId "4657101"]
[WhiteElo "2190"]
[BlackElo "2645"]
[Result "0-1"]
[Round "02"]
[TimeControl "180+1"]
[Date "2022.03.08"]
[WhiteClock "0:00:15"]
[BlackClock "0:00:07"]

1. Nf3 {[%clk 0:02:55]}  d5 {[%clk 0:02:59]} 2. g3 {[%clk 0:02:55]}  g6 {[%clk 0:02:56]} 3. Bg2 {[%clk 0:02:55]}  Bg7 {[%clk 0:02:56]} 4. d4 {[%clk 0:02:56]}  Nd7 {[%clk 0:02:56]} 5. O-O {[%clk 0:02:56]}  Ngf6 {[%clk 0:02:56]} 6. c4 {[%clk 0:02:54]}  dxc4 {[%clk 0:02:57]} 7. Na3 {[%clk 0:02:54]}  Nb6 {[%clk 0:02:56]} 8. Nxc4 {[%clk 0:02:49]}  Nxc4 {[%clk 0:02:57]} 9. Qa4+ {[%clk 0:02:49]}  c6 {[%clk 0:02:57]} 10. Qxc4 {[%clk 0:02:50]}  Be6 {[%clk 0:02:57]} 11. Qb4 {[%clk 0:02:49]}  Qb6 {[%clk 0:02:57]} 12. Qxb6 {[%clk 0:02:48]}  axb6 {[%clk 0:02:57]} 13. e3 {[%clk 0:02:47]}  Rxa2 {[%clk 0:02:05]} 14. Rxa2 {[%clk 0:02:46]}  Bxa2 {[%clk 0:02:06]} 15. Bd2 {[%clk 0:02:47]}  O-O {[%clk 0:02:02]} 16. Ra1 {[%clk 0:02:47]}  Ra8 {[%clk 0:01:36]} 17. Bf1 {[%clk 0:02:35]}  Ra4 {[%clk 0:01:32]} 18. Ne5 {[%clk 0:02:20]}  Bb3 {[%clk 0:01:25]} 19. Rxa4 {[%clk 0:02:19]}  Bxa4 {[%clk 0:01:26]} 20. Nc4 {[%clk 0:02:18]}  Nd7 {[%clk 0:01:22]} 21. Bb4 {[%clk 0:02:15]}  c5 {[%clk 0:01:15]} 22. Bc3 {[%clk 0:02:13]}  b5 {[%clk 0:01:15]} 23. Na5 {[%clk 0:02:11]}  b4 {[%clk 0:01:13]} 24. Bd2 {[%clk 0:02:11]}  cxd4 {[%clk 0:01:14]} 25. exd4 {[%clk 0:02:09]}  Bxd4 {[%clk 0:01:14]} 26. Bxb4 {[%clk 0:02:09]}  b6 {[%clk 0:01:10]} 27. Nc4 {[%clk 0:02:04]}  e5 {[%clk 0:01:05]} 28. Bc3 {[%clk 0:01:46]}  Bxc3 {[%clk 0:01:04]} 29. bxc3 {[%clk 0:01:47]}  Bb3 {[%clk 0:00:58]} 30. Nd6 {[%clk 0:01:40]}  Nc5 {[%clk 0:00:53]} 31. Nc8 {[%clk 0:01:32]}  Na4 {[%clk 0:00:50]} 32. c4 {[%clk 0:00:46]}  Bc2 {[%clk 0:00:42]} 33. Bh3 {[%clk 0:00:35]}  f5 {[%clk 0:00:33]} 34. Bg2 {[%clk 0:00:31]}  e4 {[%clk 0:00:34]} 35. f3 {[%clk 0:00:27]}  e3 {[%clk 0:00:18]} 36. f4 {[%clk 0:00:26]}  Bd3 {[%clk 0:00:09]} 37. Bd5+ {[%clk 0:00:24]}  Kf8 {[%clk 0:00:09]} 38. Kg2 {[%clk 0:00:23]}  Nc3 {[%clk 0:00:05]} 39. Nxb6 {[%clk 0:00:21]}  Nd1 {[%clk 0:00:06]} 40. Bf3 {[%clk 0:00:16]}  e2 {[%clk 0:00:06]} 41. Bxe2 {[%clk 0:00:15]}  Bxe2 {[%clk 0:00:07]} 42. Nd7+ {[%clk 0:00:15]}  Ke7 {[%clk 0:00:07]} 0-1


[Site "https://www.chess.com"]

[Event "Titled Tuesday Blitz March 08 Late 2022"]
[White "Przybylski, Wojciech"]
[Black "Curtis, John"]
[WhiteFideId "1117599"]
[BlackFideId "3200256"]
[WhiteElo "2133"]
[BlackElo "2203"]
[Result "1-0"]
[Round "02"]
[TimeControl "180+1"]
[Date "2022.03.09"]
[WhiteClock "0:00:12"]
[BlackClock "0:00:06"]

1. e4 {[%clk 0:03:00]}  e5 {[%clk 0:02:58]} 2. Nf3 {[%clk 0:02:45]}  Nc6 {[%clk 0:02:56]} 3. Bb5 {[%clk 0:02:40]}  a6 {[%clk 0:02:54]} 4. Ba4 {[%clk 0:02:35]}  Nf6 {[%clk 0:02:53]} 5. O-O {[%clk 0:02:35]}  b5 {[%clk 0:02:50]} 6. Bb3 {[%clk 0:02:35]}  Be7 {[%clk 0:02:51]} 7. Re1 {[%clk 0:02:35]}  O-O {[%clk 0:02:49]} 8. a4 {[%clk 0:02:34]}  Rb8 {[%clk 0:02:49]} 9. c3 {[%clk 0:02:32]}  d5 {[%clk 0:02:41]} 10. exd5 {[%clk 0:02:31]}  Nxd5 {[%clk 0:02:41]} 11. Nxe5 {[%clk 0:02:30]}  Nxe5 {[%clk 0:02:40]} 12. Rxe5 {[%clk 0:02:30]}  c6 {[%clk 0:02:40]} 13. g3 {[%clk 0:02:28]}  Bd6 {[%clk 0:02:37]} 14. Re1 {[%clk 0:02:28]}  Qd7 {[%clk 0:02:34]} 15. d3 {[%clk 0:02:26]}  Qh3 {[%clk 0:02:33]} 16. Qf3 {[%clk 0:02:23]}  Bg4 {[%clk 0:02:31]} 17. Qg2 {[%clk 0:02:17]}  Qh5 {[%clk 0:02:26]} 18. axb5 {[%clk 0:02:15]}  Bf3 {[%clk 0:02:04]} 19. Qf1 {[%clk 0:02:11]}  axb5 {[%clk 0:02:02]} 20. Bd1 {[%clk 0:02:07]}  Bxd1 {[%clk 0:01:54]} 21. Rxd1 {[%clk 0:02:06]}  f5 {[%clk 0:01:48]} 22. f4 {[%clk 0:01:21]}  g5 {[%clk 0:01:46]} 23. c4 {[%clk 0:01:19]}  bxc4 {[%clk 0:01:37]} 24. dxc4 {[%clk 0:01:19]}  Bc5+ {[%clk 0:01:31]} 25. Kh1 {[%clk 0:01:18]}  Ne3 {[%clk 0:01:23]} 26. Bxe3 {[%clk 0:01:15]}  Bxe3 {[%clk 0:01:21]} 27. Nd2 {[%clk 0:00:45]}  Rxb2 {[%clk 0:01:01]} 28. Qf3 {[%clk 0:00:45]}  Qxf3+ {[%clk 0:00:54]} 29. Nxf3 {[%clk 0:00:45]}  gxf4 {[%clk 0:00:47]} 30. Ra6 {[%clk 0:00:20]}  Rf2 {[%clk 0:00:35]} 31. Ne5 {[%clk 0:00:16]}  Rb8 {[%clk 0:00:22]} 32. Rxc6 {[%clk 0:00:13]}  Bd4 {[%clk 0:00:15]} 33. Nd3 {[%clk 0:00:11]}  fxg3 {[%clk 0:00:15]} 34. Nxf2 {[%clk 0:00:10]}  gxf2 {[%clk 0:00:15]} 35. Kg2 {[%clk 0:00:10]}  Be3 {[%clk 0:00:15]} 36. Rf6 {[%clk 0:00:10]}  f4 {[%clk 0:00:15]} 37. Kf3 {[%clk 0:00:10]}  Kg7 {[%clk 0:00:14]} 38. Rf5 {[%clk 0:00:10]}  Rd8 {[%clk 0:00:13]} 39. Rfd5 {[%clk 0:00:09]}  Ra8 {[%clk 0:00:12]} 40. Rd7+ {[%clk 0:00:09]}  Kh6 {[%clk 0:00:10]} 41. R1d6+ {[%clk 0:00:08]}  Kg5 {[%clk 0:00:10]} 42. Rd5+ {[%clk 0:00:08]}  Kf6 {[%clk 0:00:09]} 43. R5d6+ {[%clk 0:00:08]}  Ke5 {[%clk 0:00:09]} 44. Rd5+ {[%clk 0:00:08]}  Ke6 {[%clk 0:00:10]} 45. R7d6+ {[%clk 0:00:09]}  Ke7 {[%clk 0:00:10]} 46. Rd7+ {[%clk 0:00:06]}  Ke6 {[%clk 0:00:11]} 47. R5d6+ {[%clk 0:00:06]}  Ke5 {[%clk 0:00:10]} 48. Rd1 {[%clk 0:00:07]}  Ra2 {[%clk 0:00:09]} 49. R7d5+ {[%clk 0:00:06]}  Ke6 {[%clk 0:00:09]} 50. Rd6+ {[%clk 0:00:07]}  Ke7 {[%clk 0:00:10]} 51. Rd7+ {[%clk 0:00:07]}  Ke6 {[%clk 0:00:10]} 52. R7d6+ {[%clk 0:00:07]}  Ke5 {[%clk 0:00:11]} 53. Rd7 {[%clk 0:00:07]}  Ke6 {[%clk 0:00:11]} 54. Rxh7 {[%clk 0:00:07]}  f1=Q+ {[%clk 0:00:09]} 55. Rxf1 {[%clk 0:00:07]}  Rc2 {[%clk 0:00:09]} 56. Rh6+ {[%clk 0:00:07]}  Kf5 {[%clk 0:00:09]} 57. Rc6 {[%clk 0:00:06]}  Rxh2 {[%clk 0:00:07]} 58. Rc8 {[%clk 0:00:06]}  Rh3+ {[%clk 0:00:07]} 59. Ke2 {[%clk 0:00:07]}  Rh2+ {[%clk 0:00:07]} 60. Kd3 {[%clk 0:00:07]}  Rd2+ {[%clk 0:00:07]} 61. Kc3 {[%clk 0:00:08]}  Ke4 {[%clk 0:00:07]} 62. Re8+ {[%clk 0:00:07]}  Kf5 {[%clk 0:00:07]} 63. Rf8+ {[%clk 0:00:06]}  Ke4 {[%clk 0:00:07]} 64. Re8+ {[%clk 0:00:06]}  Kf5 {[%clk 0:00:08]} 65. Rxe3 {[%clk 0:00:06]}  Ra2 {[%clk 0:00:06]} 66. Ref3 {[%clk 0:00:06]}  Ra3+ {[%clk 0:00:06]} 67. Kd4 {[%clk 0:00:07]}  Ra8 {[%clk 0:00:06]} 68. Rxf4+ {[%clk 0:00:07]}  Ke6 {[%clk 0:00:05]} 69. Re4+ {[%clk 0:00:07]}  Kd6 {[%clk 0:00:05]} 70. Rf6+ {[%clk 0:00:07]}  Kd7 {[%clk 0:00:06]} 71. Rf5 {[%clk 0:00:08]}  Ra1 {[%clk 0:00:05]} 72. Rd5+ {[%clk 0:00:09]}  Kc6 {[%clk 0:00:04]} 73. Re6+ {[%clk 0:00:08]}  Kc7 {[%clk 0:00:05]} 74. Rh5 {[%clk 0:00:08]}  Rd1+ {[%clk 0:00:04]} 75. Kc5 {[%clk 0:00:08]}  Rd7 {[%clk 0:00:05]} 76. Rhh6 {[%clk 0:00:08]}  Kb7 {[%clk 0:00:04]} 77. Rb6+ {[%clk 0:00:08]}  Kc7 {[%clk 0:00:05]} 78. Rhc6+ {[%clk 0:00:08]}  Kd8 {[%clk 0:00:05]} 79. Rd6 {[%clk 0:00:09]}  Ke7 {[%clk 0:00:06]} 80. Rxd7+ {[%clk 0:00:09]}  Kxd7 {[%clk 0:00:07]} 81. Rc6 {[%clk 0:00:10]}  Kd8 {[%clk 0:00:06]} 82. Kd6 {[%clk 0:00:10]}  Ke8 {[%clk 0:00:07]} 83. Ke6 {[%clk 0:00:11]}  Kf8 {[%clk 0:00:06]} 84. Rc7 {[%clk 0:00:10]}  Kg8 {[%clk 0:00:05]} 85. Kf6 {[%clk 0:00:11]}  Kh8 {[%clk 0:00:05]} 86. Kg6 {[%clk 0:00:11]}  Kg8 {[%clk 0:00:06]} 87. Rc8# {[%clk 0:00:12]} 1-0


[Site "https://www.chess.com"]